[Event "Late-Titled-Tuesday-Blitz-September-26-2023"]
[Site "Chess.com"]
[Date "2023.09.26"]
[Round "8"]
[White "IMRosen"]
[Black "cassoulet"]
[Result "0-1"]
[WhiteElo "2560"]
[BlackElo "2748"]
[TimeControl "180+1"]
[EndTime "15:26:05 PDT"]
[Termination "cassoulet won by resignation"]

1. d4 {[%clk 0:03:00.9]} 1... Nf6 {[%clk 0:02:47.4]} 2. Bf4 {[%clk 0:03:00.6]}
2... g6 {[%clk 0:02:45.7]} 3. Nc3 {[%clk 0:03:00.7]} 3... d5 {[%clk 0:02:44.9]}
4. e3 {[%clk 0:03:01.3]} 4... Bg7 {[%clk 0:02:45.2]} 5. h4 {[%clk 0:03:01.9]}
5... h5 {[%clk 0:02:43.6]} 6. Nf3 {[%clk 0:03:02]} 6... Bg4 {[%clk 0:02:41.8]}
7. Qd2 {[%clk 0:03:02]} 7... Nbd7 {[%clk 0:02:40.9]} 8. Ne5 {[%clk 0:03:00]}
8... c6 {[%clk 0:02:40]} 9. f3 {[%clk 0:02:59.8]} 9... Be6 {[%clk 0:02:39.6]}
10. O-O-O {[%clk 0:03:00.5]} 10... Qa5 {[%clk 0:02:38.5]} 11. Kb1 {[%clk
0:03:01]} 11... Rc8 {[%clk 0:02:37.1]} 12. Bd3 {[%clk 0:02:44.4]} 12... a6
{[%clk 0:02:28.5]} 13. e4 {[%clk 0:02:29.2]} 13... dxe4 {[%clk 0:02:26.6]} 14.
fxe4 {[%clk 0:02:29]} 14... O-O {[%clk 0:02:16]} 15. Nxd7 {[%clk 0:01:58.2]}
15... Nxd7 {[%clk 0:02:10.8]} 16. Bh6 {[%clk 0:01:51.4]} 16... Bxd4 {[%clk
0:01:56.4]} 17. Bxf8 {[%clk 0:01:43.7]} 17... Bxc3 {[%clk 0:01:54.5]} 18. Qxc3
{[%clk 0:01:42.2]} 18... Qxa2+ {[%clk 0:01:54.7]} 19. Kc1 {[%clk 0:01:42.7]}
19... Rxf8 {[%clk 0:01:55]} 20. b3 {[%clk 0:01:19]} 20... Qa3+ {[%clk
0:01:51.7]} 21. Qb2 {[%clk 0:01:19]} 21... Qc5 {[%clk 0:01:51.9]} 22. Kb1 {[%clk
0:01:12.9]} 22... a5 {[%clk 0:01:50.3]} 23. Bc4 {[%clk 0:01:02]} 23... Bg4
{[%clk 0:01:44.3]} 24. Be2 {[%clk 0:00:56.3]} 24... Be6 {[%clk 0:01:25.5]} 25.
Bc4 {[%clk 0:00:53.5]} 25... Bg4 {[%clk 0:01:08]} 26. Be2 {[%clk 0:00:53.2]}
26... Ne5 {[%clk 0:01:06.9]} 27. Bxg4 {[%clk 0:00:48.4]} 27... hxg4 {[%clk
0:01:07.8]} 28. h5 {[%clk 0:00:45.4]} 28... g5 {[%clk 0:01:08.1]} 29. h6 {[%clk
0:00:40.1]} 29... Kh7 {[%clk 0:01:08]} 30. Rdf1 {[%clk 0:00:28]} 30... f6 {[%clk
0:01:07.7]} 31. Rf5 {[%clk 0:00:25.7]} 31... b5 {[%clk 0:01:06.5]} 32. Qc1
{[%clk 0:00:21.8]} 32... a4 {[%clk 0:00:59.1]} 33. Qb2 {[%clk 0:00:15.4]} 33...
axb3 {[%clk 0:00:49.8]} 34. Qxb3 {[%clk 0:00:15.8]} 34... Qd4 {[%clk 0:00:45.2]}
35. Re1 {[%clk 0:00:05.8]} 35... Kxh6 {[%clk 0:00:39.4]} 36. Qb2 {[%clk
0:00:04.9]} 36... Qd2 {[%clk 0:00:36.9]} 37. Rh1+ {[%clk 0:00:04.1]} 37... Kg6
{[%clk 0:00:37.2]} 38. Rxe5 {[%clk 0:00:04.6]} 38... fxe5 {[%clk 0:00:37.2]} 39.
Qxe5 {[%clk 0:00:05.4]} 39... Qb4+ {[%clk 0:00:37.4]} 40. Kc1 {[%clk 0:00:03.2]}
40... Qa3+ {[%clk 0:00:35.3]} 41. Kb1 {[%clk 0:00:03.6]} 41... Qb4+ {[%clk
0:00:30]} 42. Kc1 {[%clk 0:00:03.6]} 42... Qd6 {[%clk 0:00:28.1]} 43. Qc3 {[%clk
0:00:03.5]} 43... Qf6 {[%clk 0:00:20.4]} 44. e5 {[%clk 0:00:03.4]} 44... Qf4+
{[%clk 0:00:18.6]} 45. Kb1 {[%clk 0:00:03.9]} 45... Qe4 {[%clk 0:00:17.5]} 46.
Rd1 {[%clk 0:00:01.8]} 46... Ra8 {[%clk 0:00:14.8]} 47. Kb2 {[%clk 0:00:02.1]}
47... Ra4 {[%clk 0:00:14]} 48. Rd3 {[%clk 0:00:01.8]} 48... Rb4+ {[%clk
0:00:14]} 49. Kc1 {[%clk 0:00:02.4]} 49... Rc4 {[%clk 0:00:13.7]} 50. Qd2 {[%clk
0:00:02.3]} 50... Qxe5 {[%clk 0:00:13.3]} 51. Kd1 {[%clk 0:00:02.1]} 51... Qa1+
{[%clk 0:00:12.7]} 52. Ke2 {[%clk 0:00:02.8]} 52... Re4+ {[%clk 0:00:13]} 53.
Re3 {[%clk 0:00:02.9]} 53... Qe5 {[%clk 0:00:12.9]} 54. Rxe4 {[%clk 0:00:02.9]}
54... Qxe4+ {[%clk 0:00:13.8]} 55. Kd1 {[%clk 0:00:03.2]} 55... Qd5 {[%clk
0:00:13.5]} 56. Ke2 {[%clk 0:00:02.1]} 56... Qxg2+ {[%clk 0:00:11.8]} 57. Kd1
{[%clk 0:00:02]} 57... Qxd2+ {[%clk 0:00:12]} 58. Kxd2 {[%clk 0:00:02.3]} 58...
Kf5 {[%clk 0:00:12.6]} 59. Ke3 {[%clk 0:00:02.9]} 59... c5 {[%clk 0:00:13]} 60.
Kd3 {[%clk 0:00:03.3]} 60... e5 {[%clk 0:00:13.4]} 61. Kc3 {[%clk 0:00:04]}
61... g3 {[%clk 0:00:13.4]} 62. Kb3 {[%clk 0:00:04.7]} 62... g2 {[%clk
0:00:13.9]} 63. Kb2 {[%clk 0:00:05.4]} 63... g1=Q {[%clk 0:00:14.1]} 64. Ka2
{[%clk 0:00:06.1]} 64... Qd4 {[%clk 0:00:14.2]} 65. Kb1 {[%clk 0:00:06.4]} 65...
Qc3 {[%clk 0:00:14.2]} 66. Kc1 {[%clk 0:00:05.8]} 66... b4 {[%clk 0:00:14.5]}
67. Kb1 {[%clk 0:00:06.5]} 67... b3 {[%clk 0:00:14.5]} 68. cxb3 {[%clk
0:00:06.5]} 68... Qxb3+ {[%clk 0:00:14.6]} 69. Ka1 {[%clk 0:00:07.3]} 69... Qc3+
{[%clk 0:00:14.2]} 70. Kb1 {[%clk 0:00:07.7]} 70... Qd2 {[%clk 0:00:14.4]} 0-1

[Event "Late-Titled-Tuesday-Blitz-September-26-2023"]
[Site "Chess.com"]
[Date "2023.09.26"]
[Round "8"]
[White "ExchangeAB"]
[Black "gordonzyxu"]
[Result "1/2-1/2"]
[WhiteElo "2406"]
[BlackElo "2208"]
[TimeControl "180+1"]
[EndTime "15:26:17 PDT"]
[Termination "Game drawn - insufficient material"]

1. d4 {[%clk 0:03:00.9]} 1... Nf6 {[%clk 0:02:59.1]} 2. Nc3 {[%clk 0:03:00.9]}
2... g6 {[%clk 0:02:59.8]} 3. e4 {[%clk 0:03:00.9]} 3... d6 {[%clk 0:02:59.2]}
4. h4 {[%clk 0:02:59.5]} 4... Bg7 {[%clk 0:02:58.9]} 5. Be2 {[%clk 0:02:59.1]}
5... c5 {[%clk 0:02:57.4]} 6. d5 {[%clk 0:02:55.1]} 6... e6 {[%clk 0:02:55.6]}
7. h5 {[%clk 0:02:43.7]} 7... exd5 {[%clk 0:02:51.6]} 8. hxg6 {[%clk 0:02:41.9]}
8... fxg6 {[%clk 0:02:49.4]} 9. exd5 {[%clk 0:02:40.1]} 9... O-O {[%clk
0:02:48.4]} 10. Nf3 {[%clk 0:02:34.9]} 10... Nbd7 {[%clk 0:02:37.1]} 11. Bg5
{[%clk 0:02:34]} 11... Qe8 {[%clk 0:02:35.6]} 12. Qd2 {[%clk 0:02:30.4]} 12...
a6 {[%clk 0:02:33.3]} 13. O-O-O {[%clk 0:02:24.7]} 13... b5 {[%clk 0:02:33.5]}
14. Rde1 {[%clk 0:02:22]} 14... Qf7 {[%clk 0:02:33.9]} 15. Bh6 {[%clk
0:01:58.8]} 15... Nb6 {[%clk 0:02:19]} 16. Ng5 {[%clk 0:01:47.7]} 16... Qb7
{[%clk 0:02:19.1]} 17. Bxg7 {[%clk 0:01:43.9]} 17... Qxg7 {[%clk 0:02:04.5]} 18.
Ne6 {[%clk 0:01:28.6]} 18... Bxe6 {[%clk 0:02:02.4]} 19. dxe6 {[%clk 0:01:29.5]}
19... d5 {[%clk 0:01:57.2]} 20. Bf3 {[%clk 0:01:18.8]} 20... d4 {[%clk
0:01:29.4]} 21. Bxa8 {[%clk 0:01:05.3]} 21... dxc3 {[%clk 0:01:24.3]} 22. Qxc3
{[%clk 0:01:06.2]} 22... Rxa8 {[%clk 0:01:21.8]} 23. Qxc5 {[%clk 0:01:02.6]}
23... Nbd5 {[%clk 0:01:11.8]} 24. Qc6 {[%clk 0:00:53.2]} 24... Re8 {[%clk
0:01:04.6]} 25. Qxa6 {[%clk 0:00:42.9]} 25... Nc7 {[%clk 0:00:43.8]} 26. Qc6
{[%clk 0:00:38.4]} 26... Nfd5 {[%clk 0:00:38.8]} 27. a3 {[%clk 0:00:31]} 27...
Qf6 {[%clk 0:00:34.5]} 28. f3 {[%clk 0:00:20.4]} 28... Qg5+ {[%clk 0:00:18.4]}
29. Kb1 {[%clk 0:00:19.6]} 29... Qxg2 {[%clk 0:00:18.1]} 30. Qd7 {[%clk
0:00:14.8]} 30... Re7 {[%clk 0:00:13.2]} 31. Qd8+ {[%clk 0:00:15.2]} 31... Kg7
{[%clk 0:00:13.3]} 32. f4 {[%clk 0:00:13.7]} 32... Rxe6 {[%clk 0:00:09.3]} 33.
Reg1 {[%clk 0:00:09.6]} 33... Qe4 {[%clk 0:00:08.5]} 34. Qd7+ {[%clk 0:00:07.3]}
34... Re7 {[%clk 0:00:09]} 35. Qh3 {[%clk 0:00:05.9]} 35... Kg8 {[%clk
0:00:06.7]} 36. f5 {[%clk 0:00:05.8]} 36... Rg7 {[%clk 0:00:03]} 37. fxg6 {[%clk
0:00:06]} 37... Rxg6 {[%clk 0:00:03.4]} 38. Rxg6+ {[%clk 0:00:05.9]} 38... Qxg6
{[%clk 0:00:04.1]} 39. Qh2 {[%clk 0:00:05.8]} 39... Kh8 {[%clk 0:00:03.6]} 40.
Rg1 {[%clk 0:00:06.2]} 40... Qf7 {[%clk 0:00:03.8]} 41. Qe5+ {[%clk 0:00:06.2]}
41... Qf6 {[%clk 0:00:03.7]} 42. Qxf6+ {[%clk 0:00:05.4]} 42... Nxf6 {[%clk
0:00:03.8]} 43. Rg5 {[%clk 0:00:05.2]} 43... h5 {[%clk 0:00:03.6]} 44. Rc5
{[%clk 0:00:04.8]} 44... Ne6 {[%clk 0:00:03.1]} 45. Rxb5 {[%clk 0:00:05]} 45...
Kg7 {[%clk 0:00:03.4]} 46. Rb7+ {[%clk 0:00:04.6]} 46... Kg6 {[%clk 0:00:03.8]}
47. Rb3 {[%clk 0:00:05.4]} 47... h4 {[%clk 0:00:04.2]} 48. Rh3 {[%clk 0:00:05]}
48... Kg5 {[%clk 0:00:04.9]} 49. b4 {[%clk 0:00:04.9]} 49... Nf4 {[%clk
0:00:04.9]} 50. Rh1 {[%clk 0:00:04.7]} 50... h3 {[%clk 0:00:05.6]} 51. Kb2
{[%clk 0:00:05]} 51... Kf5 {[%clk 0:00:06.3]} 52. Kb3 {[%clk 0:00:05.4]} 52...
Ke5 {[%clk 0:00:06.6]} 53. a4 {[%clk 0:00:05.9]} 53... Kd5 {[%clk 0:00:07.3]}
54. a5 {[%clk 0:00:06.5]} 54... Kc6 {[%clk 0:00:07.7]} 55. c4 {[%clk 0:00:06.9]}
55... Ne4 {[%clk 0:00:07.9]} 56. Ka4 {[%clk 0:00:05.8]} 56... Ng3 {[%clk
0:00:07.1]} 57. Rh2 {[%clk 0:00:05.3]} 57... Nf1 {[%clk 0:00:07.5]} 58. Rxh3
{[%clk 0:00:05.5]} 58... Nxh3 {[%clk 0:00:06.8]} 59. a6 {[%clk 0:00:06.2]} 59...
Kb6 {[%clk 0:00:06.8]} 60. b5 {[%clk 0:00:06.7]} 60... Ne3 {[%clk 0:00:06.3]}
61. Kb4 {[%clk 0:00:07.6]} 61... Nc2+ {[%clk 0:00:06.8]} 62. Kc3 {[%clk
0:00:07.8]} 62... Ne3 {[%clk 0:00:06.1]} 63. Kd4 {[%clk 0:00:08.3]} 63... Nc2+
{[%clk 0:00:05.2]} 64. Kd5 {[%clk 0:00:08.5]} 64... Nb4+ {[%clk 0:00:05.1]} 65.
Kd6 {[%clk 0:00:08]} 65... Nd3 {[%clk 0:00:02.9]} 66. c5+ {[%clk 0:00:05.9]}
66... Nxc5 {[%clk 0:00:02.8]} 67. a7 {[%clk 0:00:06.5]} 67... Kxa7 {[%clk
0:00:03.5]} 68. Kxc5 {[%clk 0:00:07]} 68... Kb7 {[%clk 0:00:03.9]} 69. b6 {[%clk
0:00:07.6]} 69... Nf4 {[%clk 0:00:04.5]} 70. Kb5 {[%clk 0:00:08.5]} 70... Nd5
{[%clk 0:00:05.1]} 71. Kc5 {[%clk 0:00:09.4]} 71... Nxb6 {[%clk 0:00:05.7]}
1/2-1/2

[Event "Late-Titled-Tuesday-Blitz-September-26-2023"]
[Site "Chess.com"]
[Date "2023.09.26"]
[Round "8"]
[White "Mesa_1"]
[Black "arminmusovic"]
[Result "1-0"]
[WhiteElo "2632"]
[BlackElo "2508"]
[TimeControl "180+1"]
[EndTime "15:26:25 PDT"]
[Termination "Mesa_1 won by resignation"]

1. Nf3 {[%clk 0:02:59.8]} 1... Nf6 {[%clk 0:02:57.7]} 2. c4 {[%clk 0:02:59.2]}
2... c5 {[%clk 0:02:55.7]} 3. Nc3 {[%clk 0:02:58.2]} 3... Nc6 {[%clk 0:02:55.9]}
4. g3 {[%clk 0:02:52.1]} 4... g6 {[%clk 0:02:55.8]} 5. d4 {[%clk 0:02:50.9]}
5... Bg7 {[%clk 0:02:48.7]} 6. d5 {[%clk 0:02:48.9]} 6... Nb8 {[%clk 0:02:46.5]}
7. Bg2 {[%clk 0:02:47.9]} 7... d6 {[%clk 0:02:47.1]} 8. O-O {[%clk 0:02:48.4]}
8... O-O {[%clk 0:02:47.7]} 9. h3 {[%clk 0:02:43.4]} 9... b5 {[%clk 0:02:38.1]}
10. Nxb5 {[%clk 0:02:41.8]} 10... Ba6 {[%clk 0:02:38]} 11. a4 {[%clk 0:02:40.3]}
11... Nbd7 {[%clk 0:02:38.3]} 12. Ra2 {[%clk 0:02:35.5]} 12... Nb6 {[%clk
0:02:33.1]} 13. b3 {[%clk 0:02:36]} 13... Bxb5 {[%clk 0:02:31]} 14. axb5 {[%clk
0:02:35.4]} 14... Ne4 {[%clk 0:02:31.9]} 15. Qc2 {[%clk 0:02:31.6]} 15... Nf6
{[%clk 0:02:08.3]} 16. Bb2 {[%clk 0:02:28.9]} 16... Qc8 {[%clk 0:02:08.7]} 17.
Rfa1 {[%clk 0:02:28.2]} 17... Qb7 {[%clk 0:02:09.2]} 18. Ra6 {[%clk 0:02:28.5]}
18... Rfe8 {[%clk 0:02:08.3]} 19. Ne1 {[%clk 0:02:22.8]} 19... h5 {[%clk
0:02:05.5]} 20. Nf3 {[%clk 0:02:18.9]} 20... Bh6 {[%clk 0:02:03]} 21. Bc3 {[%clk
0:02:17.4]} 21... Nc8 {[%clk 0:01:58.4]} 22. e3 {[%clk 0:02:16.3]} 22... Nb6
{[%clk 0:01:57.9]} 23. Qa2 {[%clk 0:02:13.5]} 23... Nc8 {[%clk 0:01:57.9]} 24.
Nd2 {[%clk 0:02:11.2]} 24... Rb8 {[%clk 0:01:57.5]} 25. Qb2 {[%clk 0:02:11]}
25... Bg7 {[%clk 0:01:56.7]} 26. Ne4 {[%clk 0:02:09.8]} 26... Nxe4 {[%clk
0:01:52.6]} 27. Bxg7 {[%clk 0:02:09.4]} 27... Ng5 {[%clk 0:01:48.6]} 28. Bh6
{[%clk 0:02:03.9]} 28... f6 {[%clk 0:01:49.1]} 29. Bxg5 {[%clk 0:02:00.8]} 29...
fxg5 {[%clk 0:01:50]} 30. Be4 {[%clk 0:01:58.3]} 30... Kf7 {[%clk 0:01:47.1]}
31. Qc2 {[%clk 0:01:55.1]} 31... Rg8 {[%clk 0:01:46.4]} 32. f4 {[%clk
0:01:55.8]} 32... Qd7 {[%clk 0:01:46.2]} 33. f5 {[%clk 0:01:52.8]} 33... Rf8
{[%clk 0:01:29.6]} 34. Rf1 {[%clk 0:01:46.2]} 34... Kg7 {[%clk 0:01:29.5]} 35.
Qb2+ {[%clk 0:01:44.5]} 35... Rf6 {[%clk 0:01:29.5]} 36. Rf2 {[%clk 0:01:33.8]}
36... Rb7 {[%clk 0:01:12.8]} 37. Ra1 {[%clk 0:01:34]} 37... Nb6 {[%clk
0:01:00.1]} 38. Raf1 {[%clk 0:01:33.6]} 38... Rb8 {[%clk 0:01:00.5]} 39. fxg6
{[%clk 0:01:24.9]} 39... Rf8 {[%clk 0:01:01.2]} 40. Bf5 {[%clk 0:01:21.4]} 40...
Qe8 {[%clk 0:01:01.7]} 41. g4 {[%clk 0:01:21.5]} 41... h4 {[%clk 0:00:59.8]} 42.
e4 {[%clk 0:01:21.3]} 42... Nd7 {[%clk 0:00:58.4]} 43. Bxd7 {[%clk 0:01:19.9]}
43... Qxd7 {[%clk 0:00:59.3]} 44. Rf5 {[%clk 0:01:13.9]} 44... Kxg6 {[%clk
0:00:55.5]} 45. Qd2 {[%clk 0:01:09.8]} 45... Rxf5 {[%clk 0:00:54.1]} 46. exf5+
{[%clk 0:01:09.2]} 46... Kf6 {[%clk 0:00:50.7]} 47. Re1 {[%clk 0:01:04.7]} 47...
Rg8 {[%clk 0:00:51.3]} 48. Re6+ {[%clk 0:01:03.3]} 48... Kf7 {[%clk 0:00:51.8]}
49. Qc3 {[%clk 0:00:53.9]} 49... Rg7 {[%clk 0:00:22.6]} 50. f6 {[%clk
0:00:50.9]} 50... exf6 {[%clk 0:00:23.5]} 51. Qxf6+ {[%clk 0:00:47.7]} 51... Kg8
{[%clk 0:00:23.5]} 52. Rxd6 {[%clk 0:00:48.1]} 52... Qf7 {[%clk 0:00:23.6]} 53.
Rd8+ {[%clk 0:00:44.5]} 53... Kh7 {[%clk 0:00:23.9]} 54. Qxf7 {[%clk 0:00:40.8]}
54... Rxf7 {[%clk 0:00:24.8]} 55. Rc8 {[%clk 0:00:38.9]} 55... Rf3 {[%clk
0:00:23.7]} 56. Rxc5 {[%clk 0:00:35.3]} 56... Rd3 {[%clk 0:00:16.3]} 57. Rc7+
{[%clk 0:00:34.1]} 57... Kg6 {[%clk 0:00:15.6]} 58. Rxa7 {[%clk 0:00:34.8]}
58... Kf6 {[%clk 0:00:15.8]} 59. Ra6+ {[%clk 0:00:33.3]} 59... Ke5 {[%clk
0:00:15.9]} 60. Kf2 {[%clk 0:00:19.4]} 60... Rxh3 {[%clk 0:00:15.4]} 61. Re6+
{[%clk 0:00:18.7]} 61... Kf4 {[%clk 0:00:15]} 62. d6 {[%clk 0:00:19.4]} 62...
Rh2+ {[%clk 0:00:15]} 63. Ke1 {[%clk 0:00:19.6]} 63... Rh1+ {[%clk 0:00:15.3]}
64. Kd2 {[%clk 0:00:19.6]} 64... Rh2+ {[%clk 0:00:16]} 65. Kc3 {[%clk 0:00:20]}
65... Rg2 {[%clk 0:00:14.8]} 66. d7 {[%clk 0:00:19.8]} 66... Rg3+ {[%clk
0:00:13.4]} 67. Kc2 {[%clk 0:00:19.3]} 67... Rg2+ {[%clk 0:00:12.5]} 68. Kc3
{[%clk 0:00:19.8]} 68... Rg3+ {[%clk 0:00:13]} 69. Kd4 {[%clk 0:00:20.5]} 69...
Rg1 {[%clk 0:00:12.6]} 70. Rd6 {[%clk 0:00:20.7]} 70... h3 {[%clk 0:00:11.5]}
71. d8=Q {[%clk 0:00:20.6]} 71... h2 {[%clk 0:00:12.4]} 72. Qf6+ {[%clk
0:00:20.7]} 72... Kg3 {[%clk 0:00:12.4]} 73. Qe5+ {[%clk 0:00:20.4]} 73... Kxg4
{[%clk 0:00:12.2]} 74. Qxh2 {[%clk 0:00:18.3]} 74... Rd1+ {[%clk 0:00:12.5]} 75.
Kc5 {[%clk 0:00:18.6]} 75... Rf1 {[%clk 0:00:11.3]} 76. Qg2+ {[%clk 0:00:18.1]}
1-0

[Event "Late-Titled-Tuesday-Blitz-September-26-2023"]
[Site "Chess.com"]
[Date "2023.09.26"]
[Round "8"]
[White "jcmesafischer"]
[Black "rose107"]
[Result "1/2-1/2"]
[WhiteElo "2324"]
[BlackElo "2128"]
[TimeControl "180+1"]
[EndTime "15:26:40 PDT"]
[Termination "Game drawn by repetition"]

1. e4 {[%clk 0:02:03.8]} 1... c5 {[%clk 0:02:58.6]} 2. Nf3 {[%clk 0:02:03.3]}
2... Nc6 {[%clk 0:02:58.2]} 3. Bb5 {[%clk 0:01:59.3]} 3... g6 {[%clk 0:02:56.7]}
4. O-O {[%clk 0:01:58.5]} 4... Bg7 {[%clk 0:02:56.2]} 5. Re1 {[%clk 0:01:52.4]}
5... Nf6 {[%clk 0:02:50.4]} 6. e5 {[%clk 0:01:50]} 6... Nd5 {[%clk 0:02:50]} 7.
Nc3 {[%clk 0:01:49.7]} 7... Nxc3 {[%clk 0:02:49.7]} 8. dxc3 {[%clk 0:01:49.7]}
8... O-O {[%clk 0:02:49.6]} 9. h3 {[%clk 0:01:44.6]} 9... d5 {[%clk 0:02:34.3]}
10. exd6 {[%clk 0:01:43.3]} 10... exd6 {[%clk 0:02:32.9]} 11. Bg5 {[%clk
0:01:43.2]} 11... Qc7 {[%clk 0:02:28.1]} 12. Bxc6 {[%clk 0:01:41.7]} 12... Qxc6
{[%clk 0:02:22.4]} 13. Be7 {[%clk 0:01:36.7]} 13... Re8 {[%clk 0:02:21.7]} 14.
Qxd6 {[%clk 0:01:35.8]} 14... Qb5 {[%clk 0:01:51.5]} 15. Bf6 {[%clk 0:01:30]}
15... Rxe1+ {[%clk 0:01:37.5]} 16. Rxe1 {[%clk 0:01:28.4]} 16... Bf5 {[%clk
0:01:32.3]} 17. Bxg7 {[%clk 0:01:18.5]} 17... Kxg7 {[%clk 0:01:30]} 18. Re7
{[%clk 0:01:16.3]} 18... Qxb2 {[%clk 0:01:24.9]} 19. Qe5+ {[%clk 0:00:32]} 19...
Kg8 {[%clk 0:01:18.5]} 20. Ng5 {[%clk 0:00:12.1]} 20... Qc1+ {[%clk 0:01:17.8]}
21. Kh2 {[%clk 0:00:09.7]} 21... Qxg5 {[%clk 0:01:17.7]} 22. Qxc5 {[%clk
0:00:09.2]} 22... Qf4+ {[%clk 0:01:15.6]} 23. g3 {[%clk 0:00:08.9]} 23... Qf3
{[%clk 0:01:13]} 24. Qd4 {[%clk 0:00:06.7]} 24... Qh5 {[%clk 0:01:02.4]} 25. g4
{[%clk 0:00:06.6]} 25... Qg5 {[%clk 0:00:52.8]} 26. Re5 {[%clk 0:00:04.8]} 26...
Rd8 {[%clk 0:00:45.6]} 27. Rd5 {[%clk 0:00:01.7]} 27... Rxd5 {[%clk 0:00:43.3]}
28. Qxd5 {[%clk 0:00:02.6]} 28... Qf4+ {[%clk 0:00:43.3]} 29. Kg1 {[%clk
0:00:03.4]} 29... Be4 {[%clk 0:00:25.2]} 30. Qd8+ {[%clk 0:00:02.9]} 30... Kg7
{[%clk 0:00:25.2]} 31. Qd4+ {[%clk 0:00:03.8]} 31... Kh6 {[%clk 0:00:24]} 32.
Qxa7 {[%clk 0:00:04.7]} 32... Qf3 {[%clk 0:00:21.8]} 33. Kf1 {[%clk 0:00:04.6]}
33... Bxc2 {[%clk 0:00:19.9]} 34. Qd4 {[%clk 0:00:02.4]} 34... Qxh3+ {[%clk
0:00:14.2]} 35. Ke1 {[%clk 0:00:02.2]} 35... Qh1+ {[%clk 0:00:10.7]} 36. Kd2
{[%clk 0:00:02.1]} 36... Qd1+ {[%clk 0:00:11.2]} 37. Ke3 {[%clk 0:00:02.2]}
37... Qe1+ {[%clk 0:00:08.4]} 38. Kf4 {[%clk 0:00:02.4]} 38... g5+ {[%clk
0:00:05]} 39. Kf3 {[%clk 0:00:02.7]} 39... Bd1+ {[%clk 0:00:04.9]} 40. Kg3
{[%clk 0:00:02.8]} 40... Qg1+ {[%clk 0:00:04.8]} 41. Kh3 {[%clk 0:00:03.4]}
41... Qh1+ {[%clk 0:00:03.3]} 42. Kg3 {[%clk 0:00:03.5]} 42... Qf3+ {[%clk
0:00:03.6]} 43. Kh2 {[%clk 0:00:03.7]} 43... Qxg4 {[%clk 0:00:04.1]} 44. Qf6+
{[%clk 0:00:04.1]} 44... Kh5 {[%clk 0:00:03.8]} 45. Qxf7+ {[%clk 0:00:05]} 45...
Kh4 {[%clk 0:00:03.9]} 46. Qxh7+ {[%clk 0:00:05.7]} 46... Qh5 {[%clk 0:00:04.2]}
47. Qe4+ {[%clk 0:00:05.9]} 47... g4 {[%clk 0:00:02.3]} 48. Qe7+ {[%clk
0:00:05.6]} 48... Qg5 {[%clk 0:00:03]} 49. Qe4 {[%clk 0:00:05.8]} 49... Bf3
{[%clk 0:00:02.4]} 50. Qe8 {[%clk 0:00:04.6]} 50... Qh5 {[%clk 0:00:01.7]} 51.
Qe7+ {[%clk 0:00:05.2]} 51... Qg5 {[%clk 0:00:01.8]} 52. Qh7+ {[%clk 0:00:05.7]}
52... Qh5 {[%clk 0:00:02.1]} 53. Qe7+ {[%clk 0:00:06.3]} 53... Qg5 {[%clk
0:00:01.6]} 54. Qc7 {[%clk 0:00:06.2]} 54... Kh5 {[%clk 0:00:01]} 55. Kg1 {[%clk
0:00:05.9]} 55... Qh6 {[%clk 0:00:01.1]} 56. Qh2+ {[%clk 0:00:05.4]} 56... Kg6
{[%clk 0:00:01.2]} 57. Qd6+ {[%clk 0:00:05.5]} 57... Kg5 {[%clk 0:00:01.8]} 58.
Qe5+ {[%clk 0:00:05.3]} 58... Kg6 {[%clk 0:00:02.4]} 59. Qe6+ {[%clk 0:00:05.7]}
59... Kg5 {[%clk 0:00:03]} 60. Qe5+ {[%clk 0:00:06.2]} 60... Kg6 {[%clk
0:00:03.4]} 61. c4 {[%clk 0:00:06]} 61... Qc1+ {[%clk 0:00:03]} 62. Kh2 {[%clk
0:00:06]} 62... Qh6+ {[%clk 0:00:03.1]} 63. Kg3 {[%clk 0:00:04.8]} 63... Qh3+
{[%clk 0:00:02.9]} 64. Kf4 {[%clk 0:00:05.2]} 64... Qh6+ {[%clk 0:00:02.6]} 65.
Kg3 {[%clk 0:00:04.4]} 65... Qg5 {[%clk 0:00:02.8]} 66. Qe6+ {[%clk 0:00:04]}
66... Kh5 {[%clk 0:00:03.1]} 67. Qf7+ {[%clk 0:00:03.9]} 67... Qg6 {[%clk
0:00:02.7]} 68. Qe7 {[%clk 0:00:03.7]} 68... Qg5 {[%clk 0:00:01.6]} 69. Qf7+
{[%clk 0:00:03.8]} 69... Qg6 {[%clk 0:00:02]} 70. Qe7 {[%clk 0:00:04.5]} 70...
Qb6 {[%clk 0:00:01.7]} 71. Qh4+ {[%clk 0:00:04.5]} 71... Kg6 {[%clk 0:00:01.5]}
72. Qe7 {[%clk 0:00:04.9]} 72... Kf5 {[%clk 0:00:01.5]} 73. Qf7+ {[%clk
0:00:05]} 73... Kg5 {[%clk 0:00:01.4]} 74. Qe7+ {[%clk 0:00:05.2]} 74... Kf5
{[%clk 0:00:01.7]} 75. Qf7+ {[%clk 0:00:05.5]} 75... Ke5 {[%clk 0:00:02]} 76.
Qe7+ {[%clk 0:00:05]} 76... Kf5 {[%clk 0:00:01.6]} 1/2-1/2